fUSD/lending_fUSD_20240927
["ID","MTS","AMOUNT","RATE_DAILY","PERIOD"]
[339278404,1727435135701,153.22,0.000149,31]
[339278405,1727435135892,153.22,0.000149,31]
[339278406,1727435135930,153.22,0.000149,31]
[339278407,1727435135988,153.22,0.000149,31]
[339278408,1727435136098,153.22,0.000149,31]
[339278409,1727435136153,153.22,0.000149,31]
[339278410,1727435136216,153.22,0.000149,31]
[339278411,1727435184329,175.56,0.00010555,2]
[339278412,1727435185260,150.0,0.0001107,2]
[339278414,1727435305504,150.0,0.0001106,2]
[339278416,1727435361533,205.94,0.00010921,2]
[339278477,1727435380597,800.0,0.00010432,2]
[339278482,1727435438617,-150.0,0.00011117,2]
[339278483,1727435438627,-150.0,0.00011145,2]
[339278484,1727435438639,-150.0,0.00011145,2]
[339278485,1727435438648,-150.0,0.00011148,2]
[339278486,1727435438658,-150.0,0.00011156,2]
[339278487,1727435438667,-111.10069228,0.00011164,2]
[339278488,1727435438680,-388.89930772,0.00011164,2]
[339278489,1727435438690,-59.99279907,0.00011164,2]
[339278490,1727435438701,-440.00720093,0.00011164,2]
[339278492,1727435438711,-150.0,0.00011168,2]
[339278493,1727435438721,-102.10115552,0.00011188,2]
[339278494,1727435439786,-47.89884448,0.00011188,2]
[339278495,1727435439797,-150.0,0.00011199,2]
[339278496,1727435439807,-150.0,0.00011201,2]
[339278497,1727435439816,-150.0,0.00011221,2]
[339278498,1727435439826,-150.0,0.00011222,2]
[339278499,1727435439836,-112.25753654,0.00011224,2]
[339278500,1727435439853,-37.74246346,0.00011224,2]
[339278501,1727435439863,-150.0,0.00011224,2]
[339278502,1727435439872,-150.0,0.00011229,2]
[339278503,1727435439882,-150.0,0.00011233,2]
[339278504,1727435439891,-150.0,0.0001126,2]
[339278505,1727435439901,-150.0,0.00011263,2]
[339278506,1727435439910,-150.0,0.00011265,2]
[339278507,1727435439920,-150.0,0.00011271,2]
[339278508,1727435439930,-150.0,0.00011271,2]
[339278509,1727435439940,-150.0,0.00011277,2]
[339278510,1727435439949,-150.0,0.00011282,2]
[339278511,1727435439959,-21.5550926,0.00011287,2]
[339278512,1727435439971,-128.4449074,0.00011287,2]
[339278513,1727435439982,-150.0,0.00011291,2]
[339278514,1727435439992,-150.0,0.00011291,2]
[339278515,1727435440001,-150.0,0.00011293,2]
[339278516,1727435440011,-77.7650926,0.00011295,2]
[339278517,1727435440023,-72.2349074,0.00011295,2]
[339278518,1727435440033,-150.0,0.00011296,2]
[339278519,1727435440042,-42.7900926,0.00011305,2]
[339278550,1727435446191,-107.2099074,0.00011305,2]
[339278551,1727435446202,-150.0,0.00011313,2]
[339278552,1727435446211,-150.0,0.00011318,2]
[339278553,1727435446221,-150.0,0.00011332,2]
[339278554,1727435446231,-150.0,0.00011332,2]
[339278555,1727435446240,-300.0,0.00011332,2]
[339278556,1727435446250,-150.0,0.00011335,2]
[339278557,1727435446259,-150.0,0.00011353,2]
[339278558,1727435446268,-150.0,0.00011367,2]
[339278559,1727435446278,-250.0,0.00011374,2]
[339278560,1727435446286,-774.8,0.00011441,2]
[339278561,1727435446295,-150.0,0.00011482,2]
[339278562,1727435446306,-200.0,0.000115,2]
[339278563,1727435446315,-30008.23761682,0.00011502,6]
[339278564,1727435447031,250.0,0.00010824,2]
[339278565,1727435563871,197.38,0.00010786,2]
[339278566,1727435717886,154.89,0.00010959,2]
[339278567,1727435723332,339.94,0.00010779,2]
[339278568,1727435737443,153.29,0.000149,31]
[339278569,1727435737481,153.29,0.000149,31]
[339278570,1727435737549,153.29,0.000149,31]
[339278571,1727435737622,153.29,0.000149,31]
[339278572,1727435737664,153.29,0.000149,31]
[339278573,1727435737724,153.29,0.000149,31]
[339278574,1727435737811,153.29,0.000149,31]
[339278575,1727435759189,697.32,8.861e-05,2]
[339278576,1727435838280,175.56,0.00010776,2]
[339278577,1727435928775,74.44,0.00010778,2]
[339278578,1727435928796,150.0,0.00010778,2]
[339278579,1727435928819,135.56,0.00010778,2]
[339278580,1727436063684,250.0,0.00010773,2]
[339278581,1727436111685,177.79,0.00010772,2]
[339278582,1727436158278,150.0,0.00011106,2]
[339278583,1727436299952,150.0,8.843e-05,2]
[339278584,1727436299978,512.45,8.843e-05,2]
[339278586,1727436340364,1050.0,0.00011,2]
[339278587,1727436391411,180.69,0.00010757,2]
[339278588,1727436486944,712.0,0.00010752,2]
[339278669,1727436608070,250.0,0.0001075,2]
[339278676,1727436632200,-662.45,0.00011107,2]
[339278677,1727436632210,-500.0,0.00011164,2]
[339278678,1727436632219,-500.0,0.00011164,2]
[339278679,1727436632230,-2166.0,0.000112,2]
[339278680,1727436632240,-313154.85770343,0.00011502,6]
[339278682,1727436638463,-734126.98467975,0.00011502,6]
[339278683,1727436638472,-286099.33,0.00011502,6]
[339278684,1727436638482,-12128.89,0.00011502,6]
[339278685,1727436638491,-66914.39,0.00011502,6]
[339278686,1727436638505,-46915.19,0.00011502,6]
[339278687,1727436638514,-34422.63,0.00011502,6]
[339278688,1727436638524,-11316.7,0.00011502,6]
[339278689,1727436638534,-26636.51,0.00011502,6]
[339278690,1727436638543,-24741.66,0.00011502,6]
[339278691,1727436638552,-57388.26,0.00011502,6]
[339278692,1727436638562,-5702.73,0.00011502,6]
[339278693,1727436638571,-23107.13,0.00011502,6]
[339278694,1727436638581,-1042.0,0.000116,2]
[339278695,1727436638590,-150.0,0.00011619,2]
[339278696,1727436638599,-150.0,0.00011623,2]
[339278697,1727436638609,-150.0,0.00011623,2]
[339278698,1727436638618,-150.0,0.00011627,2]
[339278699,1727436638628,-1500.0,0.0001163,2]
[339278700,1727436638637,-1500.0,0.0001163,2]
[339278701,1727436638647,-150.0,0.00011631,2]
[339278702,1727436638656,-150.0,0.00011632,2]
[339278703,1727436638665,-1500.0,0.00011637,2]
[339278704,1727436638674,-286.33869816,0.00011639,2]
[339278705,1727436638683,-150.0,0.00011639,2]
[339278706,1727436638692,-43111.77779351,0.0001164,2]
[339278707,1727436638701,-19999.99,0.0001164,2]
[339278708,1727436638710,-29999.99,0.0001164,2]
[339278709,1727436638719,-150.0,0.0001164,2]
[339278710,1727436638729,-1500.0,0.00011644,2]
[339278711,1727436638738,-150.0,0.00011648,2]
[339278712,1727436638750,-291.23320283,0.00011648,2]
[339278713,1727436638759,-150.0,0.0001165,2]
[339278714,1727436638768,-150.0,0.00011653,2]
[339278715,1727436638777,-150.0,0.00011657,2]
[339278716,1727436638786,-150.0,0.00011657,2]
[339278717,1727436638796,-150.0,0.00011666,2]
[339278718,1727436638806,-150.0,0.00011667,2]
[339278719,1727436638815,-150.0,0.00011667,2]
[339278720,1727436638824,-150.0,0.00011668,2]
[339278721,1727436638833,-150.0,0.0001167,2]
[339278722,1727436638843,-150.0,0.0001167,2]
[339278723,1727436638852,-150.0,0.0001168,2]
[339278724,1727436638861,-150.0,0.00011683,2]
[339278725,1727436638870,-1500.0,0.00011686,2]
[339278726,1727436638879,-150.0,0.00011688,2]
[339278727,1727436638888,-150.0,0.00011691,2]
[339278728,1727436638898,-1500.0,0.00011701,2]
[339278730,1727436638907,-150.0,0.00011703,2]
[339278732,1727436638917,-150.0,0.00011705,2]
[339278733,1727436638926,-150.0,0.00011715,2]
[339278734,1727436638936,-1500.0,0.00011716,2]
[339278749,1727436639151,-150.0,0.00011716,2]
[339278751,1727436639161,-150.0,0.0001172,2]
[339278753,1727436639170,-150.0,0.0001172,2]
[339278755,1727436639179,-150.0,0.00011725,2]
[339278757,1727436639189,-576.18562701,0.00011726,2]
[339278759,1727436639198,-150.0,0.00011733,2]
[339278761,1727436639207,-1500.0,0.00011735,2]
[339278763,1727436639217,-1500.0,0.00011735,2]
[339278765,1727436639226,-150.0,0.00011737,2]
[339278767,1727436639235,-150.0,0.00011739,2]
[339278770,1727436639247,-1500.0,0.0001174,2]
[339278771,1727436639256,-1500.0,0.00011743,2]
[339278773,1727436639266,-150.0,0.00011744,2]
[339278775,1727436639275,-150.0,0.00011745,2]
[339278777,1727436639284,-150.0,0.00011745,2]
[339278779,1727436639294,-1500.0,0.00011749,2]
[339278782,1727436639308,-150.0,0.00011749,2]
[339278784,1727436639317,-150.0,0.00011751,2]
[339278786,1727436639326,-150.0,0.00011751,2]
[339278788,1727436639336,-150.0,0.00011753,2]
[339278790,1727436639346,-1500.0,0.00011758,2]
[339278791,1727436639355,-150.0,0.00011758,2]
[339278793,1727436639364,-150.0,0.00011774,2]
[339278794,1727436639375,-150.0,0.00011775,2]
[339278795,1727436639384,-150.0,0.00011782,2]
[339278796,1727436639393,-150.0,0.00011787,2]
[339278797,1727436639403,-9929.7876,0.00011793,2]
[339278798,1727436639414,-335.09687088,0.00011793,2]
[339278799,1727436639425,-1500.0,0.00011794,2]
[339278800,1727436639435,-150.0,0.00011796,2]
[339278801,1727436639444,-1500.0,0.00011797,2]
[339278802,1727436639454,-235.26633892,0.00011798,2]
[339278803,1727436639464,-205.95140658,0.00011799,2]
[339278804,1727436639473,-150.0,0.00011809,2]
[339278805,1727436639483,-150.0,0.00011812,2]
[339278806,1727436639492,-1500.0,0.00011815,2]
[339278807,1727436639504,-1500.0,0.00011824,2]
[339278808,1727436639514,-1500.0,0.00011831,2]
[339278809,1727436639523,-150.0,0.00011839,2]
[339278810,1727436639533,-150.0,0.00011857,2]
[339278811,1727436639543,-150.0,0.0001186,2]
[339278812,1727436639552,-500.0,0.00011873,2]
[339278813,1727436639561,-500.0,0.00011873,2]
[339278814,1727436639571,-331.68886943,0.00011873,2]
[339278815,1727436639580,-150.0,0.0001188,2]
[339278816,1727436639589,-150.0,0.00011881,2]
[339278817,1727436639599,-150.0,0.00011881,2]
[339278818,1727436639608,-10014.0,0.0001189,2]
[339278819,1727436639617,-500.0,0.00011892,2]
[339278820,1727436639627,-500.0,0.00011892,2]
[339278821,1727436639636,-439.8194884,0.00011892,2]
[339278822,1727436639645,-500.0,0.00011892,2]
[339278823,1727436639654,-500.0,0.00011892,2]
[339278824,1727436639663,-500.0,0.00011892,2]
[339278825,1727436639672,-500.0,0.00011892,2]
[339278826,1727436639683,-799.88,0.00011892,2]
[339278827,1727436639693,-1128.54,0.00011892,2]
[339278828,1727436639703,-1128.54,0.00011892,2]
[339278829,1727436639714,-799.88,0.00011892,2]
[339278830,1727436639723,-1544.36,0.00011892,2]
[339278831,1727436639732,-1544.36,0.00011892,2]
[339278832,1727436639741,-504.99344096,0.00011892,2]
[339278833,1727436639752,-519.63,0.00011892,2]
[339278834,1727436639762,-519.63,0.00011892,2]
[339278835,1727436639771,-1604.63,0.00011892,2]
[339278836,1727436639780,-1604.63,0.00011892,2]
[339278837,1727436639790,-1280.85,0.00011892,2]
[339278838,1727436639799,-1280.85,0.00011892,2]
[339278839,1727436639809,-500.0,0.00011892,2]
[339278840,1727436639818,-500.0,0.00011892,2]
[339278841,1727436639829,-3930.03,0.00011892,2]
[339278842,1727436639840,-672.33,0.00011892,2]
[339278843,1727436639850,-3930.03,0.00011892,2]
[339278844,1727436639859,-672.33,0.00011892,2]
[339278845,1727436639870,-1751.69,0.00011892,2]
[339278846,1727436639879,-1751.69,0.00011892,2]
[339278847,1727436639889,-500.0,0.00011892,2]
[339278848,1727436639899,-500.0,0.00011892,2]
[339278849,1727436639909,-500.0,0.00011892,2]
[339278850,1727436639918,-500.0,0.00011892,2]
[339278851,1727436639928,-3143.03,0.00011892,2]
[339278852,1727436639937,-3143.03,0.00011892,2]
[339278853,1727436639947,-2121.0,0.00011892,2]
[339278854,1727436639956,-1006.63,0.00011892,2]
[339278856,1727436639966,-2121.0,0.00011892,2]
[339278857,1727436639975,-1006.63,0.00011892,2]
[339278858,1727436639985,-1237.54,0.00011892,2]
[339278859,1727436639996,-1237.54,0.00011892,2]
[339278860,1727436640005,-816.01,0.00011892,2]
[339278861,1727436640015,-816.01,0.00011892,2]
[339278862,1727436640026,-502.69,0.00011892,2]
[339278863,1727436640035,-502.69,0.00011892,2]
[339278864,1727436640046,-500.0,0.00011892,2]
[339278865,1727436640056,-500.0,0.00011892,2]
[339278866,1727436640066,-500.0,0.00011892,2]
[339278867,1727436640075,-100000.0,0.00011892,2]
[339278868,1727436640085,-92495.02254704,0.00011892,2]
[339278869,1727436640096,-500.0,0.00011892,2]
[339278870,1727436640107,-500.0,0.00011892,2]
[339278871,1727436640117,-500.0,0.00011892,2]
[339278872,1727436640126,-500.0,0.00011892,2]
[339278873,1727436640136,-500.0,0.00011892,2]
[339278874,1727436640145,-500.0,0.00011892,2]
[339278875,1727436640155,-879.28,0.00011892,2]
[339278876,1727436640166,-879.28,0.00011892,2]
[339278877,1727436640176,-544.71,0.00011892,2]
[339278878,1727436640186,-544.71,0.00011892,2]
[339278879,1727436640196,-500.0,0.00011892,2]
[339278880,1727436640206,-500.0,0.00011892,2]
[339278881,1727436640216,-500.0,0.00011892,2]
[339278882,1727436640233,-500.0,0.00011892,2]
[339278883,1727436640245,-500.0,0.00011892,2]
[339278884,1727436640262,-500.0,0.00011892,2]
[339278885,1727436640272,-500.0,0.00011892,2]
[339278886,1727436640282,-500.0,0.00011892,2]
[339278887,1727436640292,-500.0,0.00011892,2]
[339278888,1727436640307,-500.0,0.00011892,2]
[339278889,1727436640317,-929.92,0.00011892,2]
[339278890,1727436640327,-509.24,0.00011892,2]
[339278891,1727436640338,-500.0,0.00011892,2]
[339278892,1727436640348,-929.92,0.00011892,2]
[339278893,1727436640359,-509.24,0.00011892,2]
[339278894,1727436640369,-2350.81,0.00011892,2]
[339278895,1727436640381,-1502.07,0.00011892,2]
[339278896,1727436640391,-2350.81,0.00011892,2]
[339278897,1727436640400,-1502.07,0.00011892,2]
[339278898,1727436640410,-500.0,0.00011892,2]
[339278899,1727436640420,-341368.95851917,0.00011893,2]
[339278900,1727436640430,-153.63575951,0.00011893,2]
[339278901,1727436640440,-1047.21660243,0.00011893,2]
[339278902,1727436640450,-1298.57,0.00011897,2]
[339278903,1727436640460,-706.55,0.00011897,2]
[339278904,1727436640470,-519.68,0.00011897,2]
[339278905,1727436640480,-882.4112421,0.00011897,2]
[339278906,1727436640491,-500.0,0.00011897,2]
[339278907,1727436640502,-2697.51,0.00011897,2]
[339278910,1727436640513,-869.5,0.00011897,2]
[339278912,1727436640522,-2631.0078227,0.00011897,2]
[339278914,1727436640532,-564.19,0.00011897,2]
[339278916,1727436640542,-500.0,0.00011897,2]
[339278918,1727436640551,-500.0,0.00011897,2]
[339278919,1727436640561,-501.00783979,0.00011897,2]
[339278922,1727436640572,-614.45163352,0.00011897,2]
[339278924,1727436640583,-531.91,0.00011897,2]
[339278926,1727436640593,-500.0,0.00011897,2]
[339278928,1727436640602,-500.0,0.00011897,2]
[339278929,1727436640611,-500.0,0.00011897,2]
[339278932,1727436640621,-2857.69,0.00011897,2]
[339278934,1727436640632,-500.0,0.00011897,2]
[339278936,1727436640642,-590.0,0.00011897,2]
[339278938,1727436640651,-500.0,0.00011897,2]
[339278940,1727436640662,-1128.54,0.00011897,2]
[339278942,1727436640671,-799.88,0.00011897,2]
[339278944,1727436640681,-500.0,0.00011897,2]
[339278946,1727436640691,-826.41,0.00011897,2]
[339278947,1727436640701,-838.16674038,0.00011897,2]
[339278950,1727436640711,-1544.36,0.00011897,2]
[339278952,1727436640721,-2214.44,0.00011897,2]
[339278954,1727436640731,-500.0,0.00011897,2]
[339278956,1727436640741,-2613.39,0.00011897,2]
[339278958,1727436640751,-519.63,0.00011897,2]
[339278960,1727436640761,-835.1,0.00011897,2]
[339278962,1727436640771,-1604.63,0.00011897,2]
[339278964,1727436640781,-1250.67,0.00011897,2]
[339278966,1727436640791,-1280.85,0.00011897,2]
[339278968,1727436640801,-3930.03,0.00011897,2]
[339278970,1727436640812,-672.33,0.00011897,2]
[339278972,1727436640823,-500.0,0.00011897,2]
[339278974,1727436640833,-1751.69,0.00011897,2]
[339278976,1727436640844,-500.0,0.00011897,2]
[339278978,1727436640854,-3143.03,0.00011897,2]
[339278980,1727436640865,-943.12,0.00011897,2]
[339278982,1727436640875,-500.0,0.00011897,2]
[339278984,1727436640885,-2121.0,0.00011897,2]
[339278986,1727436640895,-1006.63,0.00011897,2]
[339278988,1727436640906,-1181.49,0.00011897,2]
[339278991,1727436640917,-4918.3321442,0.00011897,2]
[339278993,1727436640927,-500.0,0.00011897,2]
[339278995,1727436640937,-1237.54,0.00011897,2]
[339278997,1727436640947,-816.01,0.00011897,2]
[339278999,1727436640957,-1190.09,0.00011897,2]
[339279001,1727436640968,-699.74,0.00011897,2]
[339279003,1727436640979,-502.69,0.00011897,2]
[339279005,1727436640989,-500.0,0.00011897,2]
[339279007,1727436641000,-500.0,0.00011897,2]
[339279009,1727436641010,-500.0,0.00011897,2]
[339279011,1727436641019,-1281.2,0.00011897,2]
[339279013,1727436641029,-500.0,0.00011897,2]
[339279015,1727436641039,-500.0,0.00011897,2]
[339279017,1727436641049,-879.28,0.00011897,2]
[339279019,1727436641059,-879.28,0.00011897,2]
[339279021,1727436641069,-544.71,0.00011897,2]
[339279023,1727436641079,-500.0,0.00011897,2]
[339279025,1727436641089,-500.0,0.00011897,2]
[339279027,1727436641098,-500.0,0.00011897,2]
[339279029,1727436641108,-500.0,0.00011897,2]
[339279031,1727436641118,-500.0,0.00011897,2]
[339279033,1727436641128,-856.98,0.00011897,2]
[339279035,1727436641137,-500.0,0.00011897,2]
[339279037,1727436641147,-516.65,0.00011897,2]
[339279039,1727436641158,-500.0,0.00011897,2]
[339279041,1727436641168,-500.0,0.00011897,2]
[339279043,1727436641177,-500.0,0.00011897,2]
[339279045,1727436641186,-500.0,0.00011897,2]
[339279047,1727436641196,-929.92,0.00011897,2]
[339279049,1727436641206,-509.24,0.00011897,2]
[339279051,1727436641216,-500.0,0.00011897,2]
[339279053,1727436641225,-929.92,0.00011897,2]
[339279055,1727436641235,-509.24,0.00011897,2]
[339279057,1727436641245,-500.0,0.00011897,2]
[339279059,1727436641255,-500.0,0.00011897,2]
[339279061,1727436641265,-500.0,0.00011897,2]
[339279063,1727436641275,-198.9300653,0.00011897,2]
[339279065,1727436641286,-500.0,0.00011897,2]
[339279067,1727436641296,-500.0,0.00011897,2]
[339279070,1727436641312,-500.0,0.00011897,2]
[339279072,1727436641323,-1086.61,0.00011898,2]
[339279074,1727436641332,-500.0,0.00011898,2]
[339279076,1727436641343,-500.0,0.00011898,2]
[339279078,1727436641353,-500.0,0.00011898,2]
[339279080,1727436641363,-500.0,0.00011898,2]
[339279082,1727436641374,-500.0,0.00011898,2]
[339279084,1727436641384,-500.0,0.00011898,2]
[339279086,1727436641394,-500.0,0.00011898,2]
[339279088,1727436641404,-713.36,0.00011898,2]
[339279090,1727436641414,-824.54,0.00011898,2]
[339279092,1727436641424,-824.54,0.00011898,2]
[339279094,1727436641434,-20000.0,0.00011898,2]
[339279095,1727436641445,-500.0,0.00011898,2]
[339279097,1727436641455,-500.0,0.00011898,2]
[339279099,1727436641465,-2059.26,0.00011898,2]
[339279101,1727436641475,-514.29,0.00011898,2]
[339279103,1727436641485,-514.29,0.00011898,2]
[339279105,1727436641495,-500.0,0.00011898,2]
[339279107,1727436641505,-287.96062635,0.00011898,2]
[339279109,1727436641515,-500.0,0.00011898,2]
[339279111,1727436641525,-500.0,0.00011898,2]
[339279113,1727436641535,-500.0,0.00011898,2]
[339279115,1727436641546,-500.0,0.00011898,2]
[339279117,1727436641555,-163.3154786,0.00011898,2]
[339279119,1727436641566,-450.3137101,0.00011898,2]
[339279121,1727436641576,-770.58,0.00011898,2]
[339279122,1727436641586,-770.58,0.00011898,2]
[339279123,1727436641596,-608.03,0.00011898,2]
[339279124,1727436641606,-500.0,0.00011898,2]
[339279125,1727436641615,-500.0,0.00011898,2]
[339279126,1727436641626,-1464.1,0.00011898,2]
[339279127,1727436641636,-1464.1,0.00011898,2]
[339279128,1727436641646,-500.0,0.00011898,2]
[339279129,1727436641656,-798.93,0.00011898,2]
[339279130,1727436641666,-500.0,0.00011898,2]
[339279131,1727436641676,-1500.0,0.00011898,2]
[339279132,1727436641686,-1473.61,0.00011898,2]
[339279133,1727436641696,-1473.61,0.00011898,2]
[339279134,1727436641706,-1261.36,0.00011898,2]
[339279135,1727436641715,-500.0,0.00011898,2]
[339279136,1727436641725,-500.0,0.00011898,2]
[339279137,1727436641734,-265.03430009,0.00011898,2]
[339279138,1727436641744,-500.0,0.00011898,2]
[339279139,1727436641754,-500.0,0.00011898,2]
[339279140,1727436641764,-500.0,0.00011898,2]
[339279141,1727436641774,-500.0,0.00011898,2]
[339279142,1727436641783,-500.0,0.00011898,2]
[339279143,1727436641792,-500.0,0.00011898,2]
[339279144,1727436641802,-500.0,0.00011898,2]
[339279145,1727436641811,-500.0,0.00011898,2]
[339279146,1727436641821,-500.0,0.00011898,2]
[339279147,1727436641830,-500.0,0.00011898,2]
[339279148,1727436641840,-500.0,0.00011898,2]
[339279149,1727436641849,-500.0,0.00011898,2]
[339279150,1727436641859,-500.0,0.00011898,2]
[339279151,1727436641869,-500.0,0.00011898,2]
[339279152,1727436641878,-500.0,0.00011898,2]
[339279153,1727436641888,-500.0,0.00011898,2]
[339279154,1727436641898,-500.0,0.00011898,2]
[339279155,1727436641907,-2656.72,0.00011898,2]
[339279156,1727436641917,-500.0,0.00011898,2]
[339279157,1727436641927,-430.74338266,0.00011898,2]
[339279158,1727436641936,-888.55,0.00011898,2]
[339279159,1727436641947,-500.0,0.00011898,2]
[339279160,1727436641956,-500.0,0.00011898,2]
[339279161,1727436641966,-500.0,0.00011898,2]
[339279162,1727436641976,-499.95930871,0.00011898,2]
[339279163,1727436641986,-500.0,0.00011898,2]
[339279164,1727436641997,-2934.84,0.00011898,2]
[339279165,1727436642006,-2934.84,0.00011898,2]
[339279166,1727436642016,-2608.41,0.00011898,2]
[339279167,1727436642025,-1782.73,0.00011898,2]
[339279168,1727436642035,-500.0,0.00011898,2]
[339279169,1727436642045,-500.0,0.00011898,2]
[339279170,1727436642055,-862.97,0.00011898,2]
[339279171,1727436642064,-500.90979593,0.00011898,2]
[339279172,1727436642074,-852.25,0.00011898,2]
[339279173,1727436642083,-500.0,0.00011898,2]
[339279174,1727436642093,-500.0,0.00011898,2]
[339279175,1727436642302,-500.0,0.00011898,2]
[339279176,1727436642316,-1543.33,0.00011898,2]
[339279177,1727436642325,-1543.33,0.00011898,2]
[339279178,1727436642335,-1820.28,0.00011898,2]
[339279179,1727436642345,-1158.89,0.00011898,2]
[339279180,1727436642355,-501.30867506,0.00011898,2]
[339279181,1727436642364,-500.0,0.00011898,2]
[339279182,1727436642375,-601.51,0.00011898,2]
[339279183,1727436642385,-601.51,0.00011898,2]
[339279184,1727436642395,-500.0,0.00011898,2]
[339279185,1727436642405,-573.83,0.00011898,2]
[339279186,1727436642414,-500.0,0.00011898,2]
[339279187,1727436642423,-573.83,0.00011898,2]
[339279188,1727436642433,-500.0,0.00011898,2]
[339279189,1727436642442,-439.87354782,0.00011898,2]
[339279190,1727436642451,-500.0,0.00011898,2]
[339279191,1727436642461,-500.0,0.00011898,2]
[339279192,1727436642470,-500.0,0.00011898,2]
[339279193,1727436642480,-500.0,0.00011898,2]
[339279194,1727436642489,-3488.56,0.00011898,2]
[339279195,1727436642500,-827.69,0.00011898,2]
[339279196,1727436642509,-827.69,0.00011898,2]
[339279197,1727436642519,-500.0,0.00011898,2]
[339279198,1727436642528,-2348.37,0.00011898,2]
[339279199,1727436642538,-1227.02,0.00011898,2]
[339279200,1727436642547,-1227.02,0.00011898,2]
[339279201,1727436642556,-500.0,0.00011898,2]
[339279202,1727436642565,-805.35,0.00011898,2]
[339279203,1727436642574,-805.35,0.00011898,2]
[339279204,1727436642583,-580.99752481,0.00011898,2]
[339279205,1727436642593,-840.97,0.00011898,2]
[339279206,1727436642603,-840.97,0.00011898,2]
[339279207,1727436642613,-1168.38,0.00011898,2]
[339279208,1727436642622,-500.0,0.00011898,2]
[339279209,1727436642631,-220.88218194,0.00011898,2]
[339279210,1727436642641,-923.8,0.00011898,2]
[339279211,1727436642651,-923.8,0.00011898,2]
[339279212,1727436642660,-1459.34,0.00011898,2]
[339279213,1727436642669,-500.0,0.00011898,2]
[339279214,1727436642679,-500.0,0.00011898,2]
[339279215,1727436642688,-500.0,0.00011898,2]
[339279216,1727436642698,-500.0,0.00011898,2]
[339279217,1727436642707,-500.0,0.00011898,2]
[339279218,1727436642717,-500.0,0.00011898,2]
[339279219,1727436642726,-528.79,0.00011898,2]
[339279220,1727436642736,-1298.57,0.00011898,2]
[339279221,1727436642747,-1298.57,0.00011898,2]
[339279222,1727436642758,-1298.57,0.00011898,2]
[339279223,1727436642769,-1298.57,0.00011898,2]
[339279224,1727436642780,-500.0,0.00011898,2]
[339279225,1727436642789,-500.0,0.00011898,2]
[339279226,1727436642801,-500.0,0.00011898,2]
[339279227,1727436642810,-500.0,0.00011898,2]
[339279228,1727436642819,-540.7,0.00011898,2]
[339279229,1727436642830,-540.7,0.00011898,2]
[339279230,1727436642840,-999.88,0.00011898,2]
[339279231,1727436642849,-560.76,0.00011898,2]
[339279232,1727436642859,-706.55,0.00011898,2]
[339279233,1727436642868,-706.55,0.00011898,2]
[339279234,1727436642877,-1708.23,0.00011898,2]
[339279235,1727436642888,-1708.23,0.00011898,2]